{"text_format":"3","workbook":"xlsx","n_sheets":1,"sheets":["PRICING SCHEDULE"],"not_rendered":{"images":1,"defined_names":2},"read":"whole","date_system":"1900"}

{"sheet":"PRICING SCHEDULE","index":0,"n_rows":269,"n_cols":8,"rows_kept":269,"merged":[[260,0,260,4],[261,0,261,4],[262,0,262,4],[265,1,268,1],[265,2,265,4],[266,2,266,4],[267,2,267,4],[268,2,268,4]]}
[null,"SUPPLY CHAIN MANAGEMENT"]
[null,"Pricing schedule"]
["RFB  No","RFB 3167/2025"]
["RFB Title","REQUEST FOR BID APPOINTMENT OF SERVICE PROVIDER TO SUPPLY AND INSTALLATION OF DISTRIBUTION BOARDS AND CABLING AT SITA BETA DATA CENTRE FOR A PERIOD OF 30 MONTHS."]
["Bidder Name "]
[]
["1. INSTRUCTION FOR COMPLETING THE PRICING SCHEDULE"]
["(a)  Bidder must complete/enter YELLOW cells only"]
["(b)  Unit and Line prices must be VAT EXCLUSIVE and in South African Rand (ZAR) currency."]
["(c) The price must include all cost to deliver the goods or render the service, including all applicable taxes, duty fees, logistics/delivery, storage, labour, overtime and subsistence and travel"]
["(d) Bidders must complete and submit bid pricing in the provided Excel spreadsheet format, and any pricing schedule submitted in a different format will not be considered."]
[]
[{"$nulls":5},"TOTAL"]
["Item No","Goods/Service description","Unit of measure","Qty ","Unit Cost","Line Price Term \n(Excel VAT)","BRAND / MODEL","Price clarification comment"]
[1,"PRELIMINARY AND GENERAL",{"$nulls":3},{"$f":"SUBTOTAL(9, F16:F20)","v":0}]
["1.1","Preliminary and General work, services meetings and inspections for which no specific items are listed in the price schedule.","Lump Sum",1,0,{"$f":"ROUND(E16*D16,2)","v":0}]
["1.2","Documents and drawings","Lump Sum",1,0,{"$f":"ROUND(E17*D17,2)","v":0}]
["1.3","Provide \"as-built\" drawings","Lump Sum",1,0,0]
["1.4","Provide commissioning data books","Lump Sum",1,0,0]
["1.5","Provide and maintain a quality system","Lump Sum",1,0,0]
[2," SITE ESTABLISHMENT                                                                                                                                                                                                                                                                                                                                                                                                                                                                                                             The supplier will allow for all equipment and cost related to FAT as well as support to the electrical contractor for installation and on site commissioning and documentation as specified and required.",{"$nulls":3},{"$f":"SUBTOTAL(9, F22:F23)","v":0}]
[2.1,"FAT attendance, measurement and other equipment required.","Lump Sum",1,0,{"$f":"ROUND(E22*D22,2)","v":0}]
[2.2,"Fixed charges","Lump Sum",1,0,0]
[3,"LOW VOLTAGE  - SUPPLY, DELIVERY AND OFF-LOADING                                                                                                                                                                                                                                                                                                                                                                                                                                   All costs for preparing distribution boards for shipping loading at works, transportation from works to site. Cost for packing material, wrapping or crating of distribution boards to be included. Cost for off loading on site and placing distribution boards in designated laydown area including required barricading and protection on site.",{"$nulls":3},{"$f":"SUBTOTAL(9,F25:F54)","v":0}]
["3.1","LV-DB-A as per 1001668-0000-DRG-EL-100-LV DB-A and fully assebled with:\n1.\t Change Over Controller\n2.\tDB Busbar End Connections \n3.\tSupport Frame\n4.\tK/U Clamp Mounting Brackets\n5.\tDoors and Covers\n6.\tPanel Server, IFM's and IFE's\n7.\tNetwork Switch for accumulation \n8.\t24Vdc Power Supply\n","Each",1,0,{"$f":"ROUND(E25*D25,2)","v":0}]
["3.2","LV-DB-B as per 1001668-0000-DRG-EL-101-LV DB-B and fully assebled with:\n1.\t Change Over Controller\n2.\tDB Busbar End Connections \n3.\tSupport Frame\n4.\tK/U Clamp Mounting Brackets\n5.\tDoors and Covers\n6.\tPanel Server, IFM's and IFE's\n7.\tNetwork Switch for accumulation \n8.\t24Vdc Power Supply\n","Each",1,0,0]
["3.3","LV-DB-C as per 1001668-0000-DRG-EL-102-LV DB-C and fully assebled with:\n1.\t Change Over Controller\n2.\tDB Busbar End Connections \n3.\tSupport Frame\n4.\tK/U Clamp Mounting Brackets\n5.\tDoors and Covers\n6.\tPanel Server, IFM's and IFE's\n7.\tNetwork Switch for accumulation \n8.\t24Vdc Power Supply\n","Each",1,0,0]
["3.4","LV-DB-D as per 1001668-0000-DRG-EL-103-LV DB-D and fully assebled with:\n1.\t Change Over Controller\n2.\tDB Busbar End Connections \n3.\tSupport Frame\n4.\tK/U Clamp Mounting Brackets\n5.\tDoors and Covers\n6.\tPanel Server, IFM's and IFE's\n7.\tNetwork Switch for accumulation \n8.\t24Vdc Power Supply\n","Each",1,0,{"$f":"ROUND(E28*D28,2)","v":0}]
["3.5","DB-UPS-A as per 1001668-0000-DRG-EL-110-DB-UPS A and fully assebled with:\n1.\tDB Busbar End Connections \n2.\tSupport Frame\n3.\tDoors and Covers\n4.\tPanel Server, IFM's and IFE's\n5.\tNetwork Switch for accumulation \n6.\t24Vdc Power Supply","Each",1,0,0]
["3.6","DB-UPS-B as per 1001668-0000-DRG-EL-111-DB-UPS B and fully assebled with:\n1.\tDB Busbar End Connections \n2.\tSupport Frame\n3.\tDoors and Covers\n4.\tPanel Server, IFM's and IFE's\n5.\tNetwork Switch for accumulation \n6.\t24Vdc Power Supply","Each",1,0,0]
["3.7","DB-UPS-C as per 1001668-0000-DRG-EL-112-DB-UPS C and fully assebled with:\n1.\tDB Busbar End Connections \n2.\tSupport Frame\n3.\tDoors and Covers\n4.\tPanel Server, IFM's and IFE's\n5.\tNetwork Switch for accumulation \n6.\t24Vdc Power Supply","Each",1,0,0]
["3.8","DB-UPS-D as per 1001668-0000-DRG-EL-113-DB-UPS D and fully assebled with:\n1.\tDB Busbar End Connections \n2.\tSupport Frame\n3.\tDoors and Covers\n4.\tPanel Server, IFM's and IFE's\n5.\tNetwork Switch for accumulation \n6.\t24Vdc Power Supply","Each",1,0,{"$f":"ROUND(E32*D32,2)","v":0}]
["3.9","PDP-A1.1 as per 1001668-0000-DRG-EL-130-PDP-A1.1 and fully assebled with:\n1.\tDB Busbar End Connections \n2.\tSupport Frame\n3.\tDoors and Covers\n4.\tPanel Server, IFM's and IFE's\n5.\tNetwork Switch for accumulation \n6.\t24Vdc Power Supply","Each",1,0,0]
["3.10","PDP-A1.2 as per 1001668-0000-DRG-EL-131-PDP-A1.2 and fully assebled with:\n1.\tDB Busbar End Connections \n2.\tSupport Frame\n3.\tDoors and Covers\n4.\tPanel Server, IFM's and IFE's\n5.\tNetwork Switch for accumulation \n6.\t24Vdc Power Supply","Each",1,0,{"$f":"ROUND(E34*D34,2)","v":0}]
["3.11","PDP-A1.3 as per 1001668-0000-DRG-EL-132-PDP-A1.3 and fully assebled with:\n1.\tDB Busbar End Connections \n2.\tSupport Frame\n3.\tDoors and Covers\n4.\tPanel Server, IFM's and IFE's\n5.\tNetwork Switch for accumulation \n6.\t24Vdc Power Supply","Each",1,0,0]
["3.12","PDP-A1.4 as per 1001668-0000-DRG-EL-133-PDP-A1.4 and fully assebled with:\n1.\tDB Busbar End Connections \n2.\tSupport Frame\n3.\tDoors and Covers\n4.\tPanel Server, IFM's and IFE's\n5.\tNetwork Switch for accumulation \n6.\t24Vdc Power Supply","Each",1,0,0]
["3.13","PDP-A1.5 as per 1001668-0000-DRG-EL-134-PDP-A1.5 and fully assebled with:\n1.\tDB Busbar End Connections \n2.\tSupport Frame\n3.\tDoors and Covers\n4.\tPanel Server, IFM's and IFE's\n5.\tNetwork Switch for accumulation \n6.\t24Vdc Power Supply","Each",1,0,0]
["3.14","PDP-B1.1 as per 1001668-0000-DRG-EL-135-PDP-B1.1 and fully assebled with:\n1.\tDB Busbar End Connections \n2.\tSupport Frame\n3.\tDoors and Covers\n4.\tPanel Server, IFM's and IFE's\n5.\tNetwork Switch for accumulation \n6.\t24Vdc Power Supply","Each",1,0,0]
["3.15","PDP-B1.2 as per 1001668-0000-DRG-EL-136-PDP-B1.2 and fully assebled with:\n1.\tDB Busbar End Connections \n2.\tSupport Frame\n3.\tDoors and Covers\n4.\tPanel Server, IFM's and IFE's\n5.\tNetwork Switch for accumulation \n6.\t24Vdc Power Supply","Each",1,0,{"$f":"ROUND(E39*D39,2)","v":0}]
["3.16","PDP-B1.3 as per 1001668-0000-DRG-EL-136-PDP-B1.3 and fully assebled with:\n1.\tDB Busbar End Connections \n2.\tSupport Frame\n3.\tDoors and Covers\n4.\tPanel Server, IFM's and IFE's\n5.\tNetwork Switch for accumulation \n6.\t24Vdc Power Supply","Each",1,0,0]
["3.17","PDP-B1.4 as per 1001668-0000-DRG-EL-138-PDP-B1.4 and fully assebled with:\n1.\tDB Busbar End Connections \n2.\tSupport Frame\n3.\tDoors and Covers\n4.\tPanel Server, IFM's and IFE's\n5.\tNetwork Switch for accumulation \n6.\t24Vdc Power Supply","Each",1,0,0]
["3.18","PDP-B1.5 as per 1001668-0000-DRG-EL-139-PDP-B1.5 and fully assebled with:\n1.\tDB Busbar End Connections \n2.\tSupport Frame\n3.\tDoors and Covers\n4.\tPanel Server, IFM's and IFE's\n5.\tNetwork Switch for accumulation \n6.\t24Vdc Power Supply","Each",1,0,0]
["3.19","PDP-C1.1 as per 1001668-0000-DRG-EL-140-PDP-C1.1 and fully assebled with:\n1.\tDB Busbar End Connections \n2.\tSupport Frame\n3.\tDoors and Covers\n4.\tPanel Server, IFM's and IFE's\n5.\tNetwork Switch for accumulation \n6.\t24Vdc Power Supply","Each",1,0,0]
["3.20","PDP-C1.2 as per 1001668-0000-DRG-EL-141-PDP-C1.2 and fully assebled with:\n1.\tDB Busbar End Connections \n2.\tSupport Frame\n3.\tDoors and Covers\n4.\tPanel Server, IFM's and IFE's\n5.\tNetwork Switch for accumulation \n6.\t24Vdc Power Supply","Each",1,0,{"$f":"ROUND(E44*D44,2)","v":0}]
["3.21","PDP-C1.3 as per 1001668-0000-DRG-EL-142-PDP-C1.3 and fully assebled with:\n1.\tDB Busbar End Connections \n2.\tSupport Frame\n3.\tDoors and Covers\n4.\tPanel Server, IFM's and IFE's\n5.\tNetwork Switch for accumulation \n6.\t24Vdc Power Supply","Each",1,0,0]
["3.22","PDP-C1.4 as per 1001668-0000-DRG-EL-143-PDP-C1.4 and fully assebled with:\n1.\tDB Busbar End Connections \n2.\tSupport Frame\n3.\tDoors and Covers\n4.\tPanel Server, IFM's and IFE's\n5.\tNetwork Switch for accumulation \n6.\t24Vdc Power Supply","Each",1,0,0]
["3.23","PDP-C1.5 as per 1001668-0000-DRG-EL-144-PDP-C1.5 and fully assebled with:\n1.\tDB Busbar End Connections \n2.\tSupport Frame\n3.\tDoors and Covers\n4.\tPanel Server, IFM's and IFE's\n5.\tNetwork Switch for accumulation \n6.\t24Vdc Power Supply","Each",1,0,0]
["3.24","PDP-D1.1 as per 1001668-0000-DRG-EL-145-PDP-D1.1 and fully assebled with:\n1.\tDB Busbar End Connections \n2.\tSupport Frame\n3.\tDoors and Covers\n4.\tPanel Server, IFM's and IFE's\n5.\tNetwork Switch for accumulation \n6.\t24Vdc Power Supply","Each",1,0,0]
["3.25","PDP-D1.2 as per 1001668-0000-DRG-EL-146-PDP-D1.2 and fully assebled with:\n1.\tDB Busbar End Connections \n2.\tSupport Frame\n3.\tDoors and Covers\n4.\tPanel Server, IFM's and IFE's\n5.\tNetwork Switch for accumulation \n6.\t24Vdc Power Supply","Each",1,0,{"$f":"ROUND(E49*D49,2)","v":0}]
["3.26","PDP-D1.3 as per 1001668-0000-DRG-EL-147-PDP-D1.3 and fully assebled with:\n1.\tDB Busbar End Connections \n2.\tSupport Frame\n3.\tDoors and Covers\n4.\tPanel Server, IFM's and IFE's\n5.\tNetwork Switch for accumulation \n6.\t24Vdc Power Supply","Each",1,0,0]
["3.27","PDP-D1.4 as per 1001668-0000-DRG-EL-148-PDP-D1.4 and fully assebled with:\n1.\tDB Busbar End Connections \n2.\tSupport Frame\n3.\tDoors and Covers\n4.\tPanel Server, IFM's and IFE's\n5.\tNetwork Switch for accumulation \n6.\t24Vdc Power Supply","Each",1,0,0]
["3.28","PDP-D1.5 as per 1001668-0000-DRG-EL-149-PDP-D1.5 and fully assebled with:\n1.\tDB Busbar End Connections \n2.\tSupport Frame\n3.\tDoors and Covers\n4.\tPanel Server, IFM's and IFE's\n5.\tNetwork Switch for accumulation \n6.\t24Vdc Power Supply","Each",1,0,0]
["3.29","PRINTER DB-1 as per 1001668-0000-DRG-EL-160-PRINTER DB-1 and fully assebled with:\n1.\tDB Busbar End Connections \n2.\tSupport Frame\n3.\tDoors and Covers\n4.\tPanel Server, IFM's and IFE's\n5.\tNetwork Switch for accumulation \n6.\t24Vdc Power Supply","Each",1,0,0]
["3.30","PRINTER DB-2 as per 1001668-0000-DRG-EL-161-PRINTER DB-2 and fully assebled with:\n1.\tDB Busbar End Connections \n2.\tSupport Frame\n3.\tDoors and Covers\n4.\tPanel Server, IFM's and IFE's\n5.\tNetwork Switch for accumulation \n6.\t24Vdc Power Supply","Each",1,0,{"$f":"ROUND(E54*D54,2)","v":0}]
[4,"LOW VOLTAGE SWITCHBOARDS - INSTALLATION\n1. All cost for moving of the distribution boards from designated storage area into the room to be included. Removal of package materials, placing distribution boards in position, installation of busbars/cabling as well as bolting down to floor. this will include costs for equipment, labour and other expenses for the on-site testing and commissioning of equipment shall be included in the tendered rates for testing and commissioning as set out in the measurement and payment clauses of each pieces of equipment and in the schedule of quantities. Any additional tests specified in the standard and detail specifications shall also be included in the tendered rates.",{"$nulls":3},{"$f":"SUBTOTAL(9,F56:F85)","v":0}]
["4.1","LV-DB-A as per 1001668-0000-DRG-EL-100-LV DB-A and fully assebled ","Each",1,0,{"$f":"ROUND(E56*D56,2)","v":0}]
["4.2","LV-DB-B as per 1001668-0000-DRG-EL-101-LV DB-B and fully assebled ","Each",1,0,0]
["4.3","LV-DB-C as per 1001668-0000-DRG-EL-102-LV DB-C and fully assebled ","Each",1,0,0]
["4.4","LV-DB-D as per 1001668-0000-DRG-EL-103-LV DB-D and fully assebled ","Each",1,0,0]
["4.5","DB-UPS-A as per 1001668-0000-DRG-EL-110-DB-UPS A and fully assebled","Each",1,0,0]
["4.6","DB-UPS-B as per 1001668-0000-DRG-EL-111-DB-UPS B and fully assebled ","Each",1,0,0]
["4.7","DB-UPS-C as per 1001668-0000-DRG-EL-112-DB-UPS C and fully assebled ","Each",1,0,0]
["4.8","DB-UPS-D as per 1001668-0000-DRG-EL-113-DB-UPS D and fully assebled ","Each",1,0,0]
["4.9","PDP-A1.1 as per 1001668-0000-DRG-EL-130-PDP-A1.1 and fully assebled ","Each",1,0,0]
["4.10","PDP-A1.2 as per 1001668-0000-DRG-EL-131-PDP-A1.2 and fully assebled","Each",1,0,0]
["4.11","PDP-A1.3 as per 1001668-0000-DRG-EL-132-PDP-A1.3 and fully assebled ","Each",1,0,0]
["4.12","PDP-A1.4 as per 1001668-0000-DRG-EL-133-PDP-A1.4 and fully assebled ","Each",1,0,0]
["4.13","PDP-A1.5 as per 1001668-0000-DRG-EL-134-PDP-A1.5 and fully assebled ","Each",1,0,0]
["4.14","PDP-B1.1 as per 1001668-0000-DRG-EL-135-PDP-B1.1 and fully assebled ","Each",1,0,0]
["4.15","PDP-B1.2 as per 1001668-0000-DRG-EL-136-PDP-B1.2 and fully assebled ","Each",1,0,0]
["4.16","PDP-B1.3 as per 1001668-0000-DRG-EL-136-PDP-B1.3 and fully assebled ","Each",1,0,0]
["4.17","PDP-B1.4 as per 1001668-0000-DRG-EL-138-PDP-B1.4 and fully assebled ","Each",1,0,0]
["4.18","PDP-B1.5 as per 1001668-0000-DRG-EL-139-PDP-B1.5 and fully assebled ","Each",1,0,0]
["4.19","PDP-C1.1 as per 1001668-0000-DRG-EL-140-PDP-C1.1 and fully assebled ","Each",1,0,0]
["4.20","PDP-C1.2 as per 1001668-0000-DRG-EL-141-PDP-C1.2 and fully assebled","Each",1,0,0]
["4.21","PDP-C1.3 as per 1001668-0000-DRG-EL-142-PDP-C1.3 and fully assebled","Each",1,0,0]
["4.22","PDP-C1.4 as per 1001668-0000-DRG-EL-143-PDP-C1.4 and fully assebled ","Each",1,0,0]
["4.23","PDP-C1.5 as per 1001668-0000-DRG-EL-144-PDP-C1.5 and fully assebled ","Each",1,0,0]
["4.24","PDP-D1.1 as per 1001668-0000-DRG-EL-145-PDP-D1.1 and fully assebled ","Each",1,0,0]
["4.25","PDP-D1.2 as per 1001668-0000-DRG-EL-146-PDP-D1.2 and fully assebled","Each",1,0,0]
["4.26","PDP-D1.3 as per 1001668-0000-DRG-EL-147-PDP-D1.3 and fully assebled ","Each",1,0,0]
["4.27","PDP-D1.4 as per 1001668-0000-DRG-EL-148-PDP-D1.4 and fully assebled ","Each",1,0,0]
["4.28","PDP-D1.5 as per 1001668-0000-DRG-EL-149-PDP-D1.5 and fully assebled ","Each",1,0,0]
["4.29","PRINTER DB-1 as per 1001668-0000-DRG-EL-160-PRINTER DB-1 and fully assebled ","Each",1,0,0]
["4.30","PRINTER DB-2 as per 1001668-0000-DRG-EL-161-PRINTER DB-2 and fully assebled","Each",1,0,0]
[5,"IEC 60309 CEE ROUND SOCKETS WITH INTERGRAL SWITCH - SUPPLY, DELIVERY AND OFF-LOADING\nAll costs for preparing for shipping loading at works transportation from works to site. Cost for packing material, wrapping or crating of panels to be included. Cost for off loading on site and placing in designated laydown area including required barricading and protection on site. \n",{"$nulls":3},{"$f":"SUBTOTAL(9, F87:F88)","v":0}]
["5.1","32A Single Phase: 1ph\n","Each",480,0,0]
["5.2","32A Three Phase: 3pH\n","Each",48,0,0]
[6,"IEC 60309 CEE ROUND SOCKETS WITH INTERGRAL SWITCH - INSTALL\nAll costs for equipment, labour and other expenses  shall be included in the tendered rates for installation as set out in the measurement and payment clauses of each piece of equipment and in the schedule of quantities.   All cost for moving of the equipmet from designated storage area into the room to be included. ",{"$nulls":3},{"$f":"SUBTOTAL(9, F90:F91)","v":0}]
["6.1","32A Single Phase: 1ph\n","Each",480,0,0]
["6.2","32A Three Phase: 3pH\n","Each",24,0,0]
[7,"DISCONNECTION AND RECONNECTION OF EXISTING CABLING AND BUSBARS\nAll costs for equipment, labour and other expenses shall be included in the tendered rates inclusive of terminations and modifications.",{"$nulls":3},{"$f":"SUBTOTAL(9,F93:F99)","v":0}]
["7.1","Disconnect and Reconnect existing cables terminations 150mm2 4C Cu\n","Each",25,0,{"$f":"ROUND(E93*D93,2)","v":0}]
["7.2","Disconnect and Reconnect existing cables terminations 95mm2 4C Cu\n","Each",25,0,0]
["7.3","Disconnect and Reconnect existing cables terminations 70mm2 4C Cu\n","Each",45,0,0]
["7.4","Disconnect and Reconnect existing cables terminations 50mm2 4C Cu\n","Each",32,0,0]
["7.5","Disconnect and Reconnect existing cables terminations 25mm2 4C Cu\n","Each",32,0,0]
["7.6","Disconnect and Reconnect existing cables terminations 95mm2 1C Cu (Container Generator)\n","Each",80,0,0]
["7.7","Disconnect and Reconnect existing busbars terminations 2500A TP 3ph N+E (Cu) \n","Each",12,0,0]
[8,"LOW VOLTAGE COPPER CABLING - SUPPLY, DELIVERY AND OFF-LOADING\nAll costs for preparing cables for shipping loading at works transportation from works to site. Cost for packing material, wrapping or crating of panels to be included. Cost for off loading on site and placing in designated laydown area including required barricading and protection on site.                                                                                                                                                                                                                                                                                                                                                                                                                                                         ",{"$nulls":3},{"$f":"SUBTOTAL(9,F101:F123)","v":0}]
["8.1","300mm2: 4-Core With ECC 600/1000V; XLPE Insulated/PVC Sheathed Armoured","metre",1500,0,{"$f":"ROUND(E101*D101,2)","v":0}]
["8.2","300mm2: 1-Core 600/1000V; XLPE Insulated/PVC Sheathed Armoured \n","metre",1500,0,0]
["8.3","240mm2: 4-Core With ECC 600/1000V; XLPE Insulated/PVC Sheathed Armoured\n","metre",1500,0,0]
["8.4","240mm2: 1-Core 600/1000V; XLPE Insulated/PVC Sheathed Armoured \n","metre",1500,0,0]
["8.5","185mm2: 4-Core With ECC 600/1000V; XLPE Insulated/PVC Sheathed ArmouredCore Armoured \n","metre",1000,0,0]
["8.6","185mm2: 1-Core 600/1000V; XLPE Insulated/PVC Sheathed Armoured  LV \n","metre",1000,0,0]
["8.7","185mm2: 1-Core POLY BRAID\n","metre",1500,0,0]
["8.8","150mm2:  4-Core With ECC 600/1000V; XLPE Insulated/PVC Sheathed ArmouredCore Armoured LV CU PVC SWA ECC CABLE\n","metre",1500,0,0]
["8.9","150mm2: 1-Core 600/1000V; XLPE Insulated/PVC Sheathed Armoured  \n","metre",1500,0,0]
["8.10","95mm2:  4-Core With ECC 600/1000V; XLPE Insulated/PVC Sheathed ArmouredCore Armoured LV CU PVC SWA ECC CABLE\n","metre",1000,0,0]
["8.11","95mm2: 1-Core 600/1000V; XLPE Insulated/PVC Sheathed Armoured  \n","metre",1000,0,0]
["8.12","70mm2:  4-Core With ECC 600/1000V; XLPE Insulated/PVC Sheathed ArmouredCore Armoured LV CU PVC SWA ECC CABLE\n","metre",1000,0,0]
["8.13","70mm2: 1-Core 600/1000V; XLPE Insulated/PVC Sheathed Armoured  \n","metre",1000,0,0]
["8.14","10mm2: 4-Core With ECC 600/1000V; XLPE Insulated/PVC Sheathed ArmouredCore Armoured LV CU PVC SWA ECC CABLE\n","metre",1000,0,0]
["8.15","1.5mm2: 7-Core 600/1000V; XLPE Insulated/PVC Sheathed Armoured","metre",1000,0,0]
["8.16","CAT 6 Communication Cable\n","metre",1500,0,0]
["8.17","95mm2 LV CABLES : Kwena Cable\n","metre",1000,0,0]
["8.18","70mm2 LV CABLES : Kwena Cable\n","metre",1000,0,0]
["8.19","50mm2 LV CABLES : Kwena Cable\n","metre",1000,0,0]
["8.20","25mm2 LV CABLES : Kwena Cable\n","metre",1000,0,0]
["8.21","6mm2 LV Cu CABLES: Insulated E/W \n","metre",2000,0,0]
["8.22","6mm2 LV Cable: HO7 RN-F Flexible Trailing Cable 5 Core","metre",500,0,{"$f":"E122*D122","v":0}]
["8.23","6mm2 LV Cable: HO7 RN-F Flexible Trailing Cable 3 Core","metre",5000,0,0]
[9,"LOW VOLTAGE COPPER CABLING - INSTALL\nAll costs for equipment, labour, terminations and other expenses  shall be included in the tendered rates for installation as set out in the measurement and payment clauses of each piece of equipment and in the schedule of quantities.   All cost for moving of the equipmet from designated storage area into the room to be included.                                                                                                                                                                                                                                                                                                                                                                                                                                      ",{"$nulls":3},{"$f":"SUBTOTAL(9,F125:F147)","v":0}]
["9.1","300mm2: 4-Core With ECC 600/1000V; XLPE Insulated/PVC Sheathed Armoured","metre",2000,0,{"$f":"ROUND(E125*D125,2)","v":0}]
["9.2","300mm2: 1-Core 600/1000V; XLPE Insulated/PVC Sheathed Armoured \n","metre",2000,0,0]
["9.3","240mm2: 4-Core With ECC 600/1000V; XLPE Insulated/PVC Sheathed Armoured\n","metre",2000,0,0]
["9.4","240mm2: 1-Core 600/1000V; XLPE Insulated/PVC Sheathed Armoured \n","metre",2000,0,0]
["9.5","185mm2: 4-Core With ECC 600/1000V; XLPE Insulated/PVC Sheathed ArmouredCore Armoured \n","metre",2000,0,0]
["9.6","185mm2: 1-Core 600/1000V; XLPE Insulated/PVC Sheathed Armoured  LV \n","metre",2000,0,0]
["9.7","185mm2: 1-Core POLY BRAID\n","metre",2000,0,0]
["9.8","150mm2:  4-Core With ECC 600/1000V; XLPE Insulated/PVC Sheathed ArmouredCore Armoured LV CU PVC SWA ECC CABLE\n","metre",2000,0,0]
["9.9","150mm2: 1-Core 600/1000V; XLPE Insulated/PVC Sheathed Armoured  \n","metre",2000,0,0]
["9.10","95mm2:  4-Core With ECC 600/1000V; XLPE Insulated/PVC Sheathed ArmouredCore Armoured LV CU PVC SWA ECC CABLE\n","metre",1000,0,0]
["9.11","95mm2: 1-Core 600/1000V; XLPE Insulated/PVC Sheathed Armoured  \n","metre",1000,0,0]
["9.12","70mm2:  4-Core With ECC 600/1000V; XLPE Insulated/PVC Sheathed ArmouredCore Armoured LV CU PVC SWA ECC CABLE\n","metre",1000,0,0]
["9.13","70mm2: 1-Core 600/1000V; XLPE Insulated/PVC Sheathed Armoured  \n","metre",1000,0,0]
["9.14","10mm2: 4-Core With ECC 600/1000V; XLPE Insulated/PVC Sheathed ArmouredCore Armoured LV CU PVC SWA ECC CABLE\n","metre",1000,0,0]
["9.15","1.5mm2: 7-Core 600/1000V; XLPE Insulated/PVC Sheathed Armoured","metre",1000,0,0]
["9.16","CAT 6 Communication Cable\n","metre",1500,0,0]
["9.17","95mm2 LV CABLES : Kwena Cable\n","metre",1500,0,0]
["9.18","70mm2 LV CABLES : Kwena Cable\n","metre",2000,0,0]
["9.19","50mm2 LV CABLES : Kwena Cable\n","metre",1000,0,0]
["9.20","25mm2 LV CABLES : Kwena Cable\n","metre",1000,0,0]
["9.21","6mm2 LV Cu CABLES: Insulated E/W \n","metre",2000,0,0]
["9.22","6mm2 LV Cable: HO7 RN-F Flexible Trailing Cable 5 Core","metre",500,0,{"$f":"E146*D146","v":0}]
["9.23","6mm2 LV Cable: HO7 RN-F Flexible Trailing Cable 3 Core","metre",5000,0,0]
[10,"LOW VOLTAGE COPPER CABLING - TERMINATIONS\nAll costs for material, equipment, labour and other expenses  shall be included in the tendered rates for testing and commissioning as set out in the measurement and payment clauses of each piece of equipment and in the schedule of quantities. Termination inclusive of: lugs for all cores, shrouds and cable glands (E1W VS - CCG or similar)\n                                                                                                                                                                                                                                                                                                                                                                                                                                                                    ",{"$nulls":3},{"$f":"SUBTOTAL(9,F149:F168)","v":0}]
["10.1","300mm2: 4-Core With ECC 600/1000V; XLPE Insulated/PVC Sheathed Armoured","Each",150,0,{"$f":"ROUND(E149*D149,2)","v":0}]
["10.2","300mm2: 1-Core 600/1000V; XLPE Insulated/PVC Sheathed Armoured \n","Each",150,0,0]
["10.3","240mm2: 4-Core With ECC 600/1000V; XLPE Insulated/PVC Sheathed Armoured\n","Each",150,0,0]
["10.4","240mm2: 1-Core 600/1000V; XLPE Insulated/PVC Sheathed Armoured \n","Each",150,0,0]
["10.5","185mm2: 4-Core With ECC 600/1000V; XLPE Insulated/PVC Sheathed ArmouredCore Armoured \n","Each",150,0,0]
["10.6","185mm2: 1-Core 600/1000V; XLPE Insulated/PVC Sheathed Armoured  LV \n","Each",150,0,0]
["10.7","185mm2: 1-Core POLY BRAID\n","Each",150,0,0]
["10.8","150mm2:  4-Core With ECC 600/1000V; XLPE Insulated/PVC Sheathed ArmouredCore Armoured LV CU PVC SWA ECC CABLE\n","Each",150,0,0]
["10.9","150mm2: 1-Core 600/1000V; XLPE Insulated/PVC Sheathed Armoured  \n","Each",150,0,0]
["10.10","95mm2:  4-Core With ECC 600/1000V; XLPE Insulated/PVC Sheathed ArmouredCore Armoured LV CU PVC SWA ECC CABLE\n","Each",150,0,0]
["10.11","95mm2: 1-Core 600/1000V; XLPE Insulated/PVC Sheathed Armoured  \n","Each",150,0,0]
["10.12","70mm2:  4-Core With ECC 600/1000V; XLPE Insulated/PVC Sheathed ArmouredCore Armoured LV CU PVC SWA ECC CABLE\n","Each",150,0,0]
["10.13","70mm2: 1-Core 600/1000V; XLPE Insulated/PVC Sheathed Armoured  \n","Each",150,0,0]
["10.14","10mm2: 4-Core With ECC 600/1000V; XLPE Insulated/PVC Sheathed ArmouredCore Armoured LV CU PVC SWA ECC CABLE\n","Each",150,0,0]
["10.15","1.5mm2: 7-Core 600/1000V; XLPE Insulated/PVC Sheathed Armoured","Each",150,0,0]
["10.16","95mm2 LV CABLES : Kwena Cable\n","Each",150,0,0]
["10.17","70mm2 LV CABLES : Kwena Cable\n","Each",150,0,0]
["10.18","50mm2 LV CABLES : Kwena Cable\n","Each",150,0,0]
["10.19","25mm2 LV CABLES : Kwena Cable\n","Each",150,0,0]
["10.20","6mm2 LV Cu CABLES: Insulated E/W \n","Each",150,0,0]
[11,"LINE TAP - SUPPLY, DELIVERY, OFF-LOADING AND INSTALL\nAll costs for preparing for shipping loading at works transportation from works to site. Cost for packing material, wrapping or crating of panels to be included. Cost for off loading on site and placing in designated laydown area including required barricading and protection on site. \n",{"$nulls":3},{"$f":"SUBTOTAL(9,F170)","v":0}]
["11.1","70mm2 LINE TAP \n","metre",1200,0,{"$f":"ROUND(E170*D170,2)","v":0}]
[12,"LINE TAP - INSTALL\nAll costs for equipment, labour and other expenses  shall be included in the tendered rates for installation as set out in the measurement and payment clauses of each piece of equipment and in the schedule of quantities.   All cost for moving of the equipmet from designated storage area into the room to be included.                                                                                                                                                                                                                                                                                                                                                                                                                                            ",{"$nulls":3},{"$f":"SUBTOTAL(9,F172)","v":0}]
["12.1","70mm2 LINE TAP \n","metre",1200,0,{"$f":"ROUND(E172*D172,2)","v":0}]
[13,"CABLE LADDER : SUPPLY, DELIVERY AND OFF-LOADING\nAll costs for preparing for shipping loading at works transportation from works to site. Cost for packing material, wrapping or crating of panels to be included. Cost for off loading on site and placing in designated laydown area including required barricading and protection on site. This will include supports for every 2000mm and minimum 350mm high, Hold Down Bolts and associated fastening material and accesssories.\n",{"$nulls":3},{"$f":"SUBTOTAL(9,F174:F185)","v":0}]
["13.1","900W - Straight\n","metre",600,0,{"$f":"ROUND(E174*D174,2)","v":0}]
["13.2","900W - Bend\n","Each",60,0,0]
["13.3","900W - T Piece\n","Each",60,0,0]
["13.4","600W - Straight\n","metre",600,0,0]
["13.5","600W - Bend\n","Each",60,0,0]
["13.6","600W - T Piece\n","Each",60,0,0]
["13.7","500W - Straight\n","metre",300,0,0]
["13.8","500W - Bend\n","Each",30,0,0]
["13.9","500W - T Piece\n","Each",30,0,0]
["13.10","400W - Straight","Each",300,0,0]
["13.11","400W - Bend","Each",30,0,0]
["13.12","400W - T Piece","Each",30,0,0]
[14,"CABLE LADDER :HD - INSTALL\nAll costs for HD bolts, hangers, flooor supports, equipment, labour and other expenses  shall be included in the tendered rates for installation as set out in the measurement and payment clauses of each piece of equipment and in the schedule of quantities.   All cost for moving of the equipmet from designated storage area into the room to be included. This will include supports for every 2000mm, Hold Down Bolts and associated fastening material and accesssories\n",{"$nulls":3},{"$f":"SUBTOTAL(9,F187:F198)","v":0}]
["14.1","900W - Straight\n","metre",600,0,{"$f":"ROUND(E187*D187,2)","v":0}]
["14.2","900W - Bend\n","Each",60,0,0]
["14.3","900W - T Piece\n","Each",60,0,0]
["14.4","600W - Straight\n","metre",600,0,0]
["14.5","600W - Bend\n","Each",60,0,0]
["14.6","600W - T Piece\n","Each",60,0,0]
["14.7","500W - Straight\n","metre",300,0,0]
["14.8","500W - Bend\n","Each",30,0,0]
["14.9","500W - T Piece\n","Each",30,0,0]
["14.10","400W - Straight","Each",300,0,0]
["14.11","400W - Bend","Each",30,0,0]
["14.12","400W - T Piece","Each",30,0,0]
[15,"MESH WIRE  TRAYS : HD - SUPPLY, DELIVERY AND OFF-LOADING\nAll costs for preparing for shipping loading at works transportation from works to site. Cost for packing material, wrapping or crating of panels to be included. Cost for off loading on site and placing in designated laydown area including required barricading and protection on site. \n",{"$nulls":3},{"$f":"SUBTOTAL(9,F200:F202)","v":0}]
["15.1","500W - Straight\n","metre",300,0,{"$f":"ROUND(E200*D200,2)","v":0}]
["15.2","500W - Bends\n","Each",40,0,0]
["15.3","500W - T Piece","Each",40,0,0]
[16,"MESH WIRE  TRAYS : HD - SUPPLY, DELIVERY AND OFF-LOADING\nAll costs for HD bolts, hangers, flooor supports, equipment, labour and other expenses  shall be included in the tendered rates for installation as set out in the measurement and payment clauses of each piece of equipment and in the schedule of quantities.   All cost for moving of the equipmet from designated storage area into the room to be included.     \n",{"$nulls":3},{"$f":"SUBTOTAL(9,F204:F206)","v":0}]
["16.1","500W - Straight\n","metre",300,0,{"$f":"ROUND(E204*D204,2)","v":0}]
["16.2","500W - Bends\n","Each",40,0,0]
["16.3","500W - T Piece","Each",40,0,0]
[17,"SUNDRIES\n",{"$nulls":3},{"$f":"SUBTOTAL(9,F208)","v":0}]
["17.1","Vacuum cleaning the floor void after installation of services\n","m2",2000,0,{"$f":"ROUND(E208*D208,2)","v":0}]
[18,"TESTING & COMMISSIONING\nAll costs for equipment, labour and other expenses for the on-site testing and commissioning of equipment shall be included in the tendered rates for testing and commissioning as set out in the measurement and payment clauses of each pieces of equipment and in the schedule of quantities. Any additional tests specified in the standard and detail specifications shall also be included in the tendered rates. Including COC by Master Electrician for Each switchboard and installation.",{"$nulls":3},{"$f":"SUBTOTAL(9,F210:F240)","v":0}]
["18.1","LV-DB-A as per 1001668-0000-DRG-EL-100-LV DB-A and fully assebled ","Each",1,0,{"$f":"ROUND(E210*D210,2)","v":0}]
["18.2","LV-DB-B as per 1001668-0000-DRG-EL-101-LV DB-B and fully assebled ","Each",1,0,0]
["18.3","LV-DB-C as per 1001668-0000-DRG-EL-102-LV DB-C and fully assebled ","Each",1,0,0]
["18.4","LV-DB-D as per 1001668-0000-DRG-EL-103-LV DB-D and fully assebled ","Each",1,0,0]
["18.5","DB-UPS-A as per 1001668-0000-DRG-EL-110-DB-UPS A and fully assebled","Each",1,0,0]
["18.6","DB-UPS-B as per 1001668-0000-DRG-EL-111-DB-UPS B and fully assebled ","Each",1,0,0]
["18.7","DB-UPS-C as per 1001668-0000-DRG-EL-112-DB-UPS C and fully assebled ","Each",1,0,0]
["18.8","DB-UPS-D as per 1001668-0000-DRG-EL-113-DB-UPS D and fully assebled ","Each",1,0,0]
["18.9","PDP-A1.1 as per 1001668-0000-DRG-EL-130-PDP-A1.1 and fully assebled ","Each",1,0,0]
["18.10","PDP-A1.2 as per 1001668-0000-DRG-EL-131-PDP-A1.2 and fully assebled","Each",1,0,0]
["18.11","PDP-A1.3 as per 1001668-0000-DRG-EL-132-PDP-A1.3 and fully assebled ","Each",1,0,0]
["18.12","PDP-A1.4 as per 1001668-0000-DRG-EL-133-PDP-A1.4 and fully assebled ","Each",1,0,0]
["18.13","PDP-A1.5 as per 1001668-0000-DRG-EL-134-PDP-A1.5 and fully assebled ","Each",1,0,0]
["18.14","PDP-B1.1 as per 1001668-0000-DRG-EL-135-PDP-B1.1 and fully assebled ","Each",1,0,0]
["18.15","PDP-B1.2 as per 1001668-0000-DRG-EL-136-PDP-B1.2 and fully assebled ","Each",1,0,0]
["18.16","PDP-B1.3 as per 1001668-0000-DRG-EL-136-PDP-B1.3 and fully assebled ","Each",1,0,0]
["18.17","PDP-B1.4 as per 1001668-0000-DRG-EL-138-PDP-B1.4 and fully assebled ","Each",1,0,0]
["18.18","PDP-B1.5 as per 1001668-0000-DRG-EL-139-PDP-B1.5 and fully assebled ","Each",1,0,0]
["18.19","PDP-C1.1 as per 1001668-0000-DRG-EL-140-PDP-C1.1 and fully assebled ","Each",1,0,0]
["18.20","PDP-C1.2 as per 1001668-0000-DRG-EL-141-PDP-C1.2 and fully assebled","Each",1,0,0]
["18.21","PDP-C1.3 as per 1001668-0000-DRG-EL-142-PDP-C1.3 and fully assebled","Each",1,0,0]
["18.22","PDP-C1.4 as per 1001668-0000-DRG-EL-143-PDP-C1.4 and fully assebled ","Each",1,0,0]
["18.23","PDP-C1.5 as per 1001668-0000-DRG-EL-144-PDP-C1.5 and fully assebled ","Each",1,0,0]
["18.24","PDP-D1.1 as per 1001668-0000-DRG-EL-145-PDP-D1.1 and fully assebled ","Each",1,0,0]
["18.25","PDP-D1.2 as per 1001668-0000-DRG-EL-146-PDP-D1.2 and fully assebled","Each",1,0,0]
["18.26","PDP-D1.3 as per 1001668-0000-DRG-EL-147-PDP-D1.3 and fully assebled ","Each",1,0,0]
["18.27","PDP-D1.4 as per 1001668-0000-DRG-EL-148-PDP-D1.4 and fully assebled ","Each",1,0,0]
["18.28","PDP-D1.5 as per 1001668-0000-DRG-EL-149-PDP-D1.5 and fully assebled ","Each",1,0,0]
["18.29","PRINTER DB-1 as per 1001668-0000-DRG-EL-160-PRINTER DB-1 and fully assebled ","Each",1,0,0]
["18.30","PRINTER DB-2 as per 1001668-0000-DRG-EL-161-PRINTER DB-2 and fully assebled","Each",1,0,0]
["18.31","Electrical Certificates Of Compliance  by Master Installation Electrician in Accordance with SANS 10142\n","Each",30,0,0]
[19,"REMOVAL EXISTING DISTRIBUTION BOARDS\nAll costs for preparing support frames for moving  from works to site to the dedicated storage area at Centurion Data Centre.",{"$nulls":3},{"$f":"SUBTOTAL(9,F242:F243)","v":0}]
["19.1","All existing Low Voltage DB's inside existing LV Room\n","Sum",1,0,{"$f":"ROUND(E242*D242,2)","v":0}]
["19.2","Cabling and Busbar Trunking","Sum",1,0,0]
[20,"DIAMOND CORE DRILLING CREATE OPENING IN EXISTING WALL AND FLOORS",{"$nulls":3},{"$f":"SUBTOTAL(9,F245:F247)","v":0}]
["20.1","Brick, 400mm thick, 500mm x 300mm\n","Each",32,0,{"$f":"ROUND(E245*D245,2)","v":0}]
["20.2","Reinforced Concrete 40MPa, 400mm thick, 500m x 300m\n","Each",32,0,0]
["20.3","Reinforced Concrete 40MPa, 400mm Diameter Core Drilling on 250mm Reinforced Floor\n","Each",120,0,0]
[21,"PROVISION FOR FULL FIRE PROTECTION\n",{"$nulls":3},{"$f":"SUBTOTAL(9,F249:F250)","v":0}]
["21.1","Smoke and aspiration detection to space aroung new distribution boards. \n","m2",200,0,{"$f":"ROUND(E249*D249,2)","v":0}]
["21.2","Novec Gas Fire Suppression System Complete with piping and Cylinders\n","m3",600,0,0]
[22,"DAYWORK UNIT RATES: LABOUR\nNote that the quantities indicated below are only for evaluation purposes and to determine the contract unit rates. The final quantities will be based on works orders.",{"$nulls":3},{"$f":"SUBTOTAL(9, F252:F256)","v":0}]
["22.1","Skilled Labour","per hour",800,0,{"$f":"ROUND(E252*D252,2)","v":0}]
["22.2","Unskilled labourers","per hour",800,0,0]
["22.3","Semi - skilled labourers","per hour",800,0,0]
["22.4","Artisans","per hour",800,0,0]
["22.5","Foreman/supervision ","per hour",800,0,0]
[23,"PLANT UNIT RATES\nNote that the quantities indicated below are only for evaluation purposes and to determine the contract unit rates. The final quantities will be based on works orders ",{"$nulls":3},{"$f":"SUBTOTAL(9, F258)","v":0}]
["23.1","Plant","Unit rate per day",30,0,{"$f":"ROUND(E258*D258,2)","v":0}]
[24,"TRANSPORT UNIT RATES: LABOUR\nNote that the quantities indicated below are only for evaluation purposes and to determine the contract unit rates. The final quantities will be based on works orders",{"$nulls":3},{"$f":"SUBTOTAL(9, F260)","v":0}]
["24.1","Transport - specify","Unit rate per km",4000,0,{"$f":"ROUND(E260*D260,2)","v":0}]
["TOTAL BID PRICE  (EXCL VAT)",{"$nulls":4},{"$f":"+SUBTOTAL(9,F15:F260)","v":0}]
["VAT (@15%)",{"$nulls":4},{"$f":"ROUND(F261*15%,2)","v":0}]
["TOTAL  BID PRICE (INCL VAT)",{"$nulls":4},{"$f":"ROUND((F261+F262),2)","v":0}]
[]
[]
[null,"I, the bidder, confirm that the price(s) and rate(s) quoted cover all the goods and/or works specified in the bidding documents; that the price(s) or rate(s) cover all my obligations and I accept that any mistakes regarding price(s), rate(s) or calculations will be at my own risk.\n[Note: First convert to PDF, then add signature]"]
[null,null,"Name"]
[]
[null,null,"Signature (above)"]